[Event "Summer Chess Classic-B 2019"]
[Site "Saint Louis"]
[Date "2019.06.19"]
[Round "2.1"]
[White "Fridman, Daniel"]
[Black "Kovalenko, Igor"]
[Result "1/2-1/2"]
[ECO "A46"]
[WhiteElo "2644"]
[BlackElo "2651"]
[Annotator "ChessBase"]
[PlyCount "61"]
[EventDate "2019.06.18"]
[EventType "tourn"]
[EventCountry "USA"]
[SourceTitle "playchess.com"]
[Source "ChessBase"]
[SourceQuality "1"]
[TimeControl "40/5400+30:1800+30"]

1. d4 {[%emt 0:01:22]} Nf6 {[%emt 0:00:28]} 2. Nf3 {[%emt 0:00:13]} d5 {[%emt 0:00:29]} 3. c4 {[%emt 0:00:07]} e6 {[%emt 0:00:03]} 4. g3 {[%emt 0:00:21]} Bb4+ {[%emt 0:00:04]} 5. Bd2 {[%emt 0:00:06]} Be7 {[%emt 0:00:04]} 6. Bg2 {[%emt 0:00:07]} O-O {[%emt 0:00:04]} 7. O-O {[%emt 0:00:15]} Nbd7 {[%emt 0:01:14]} 8. Qc2 {[%emt 0:00:26]} c6 {[%emt 0:00:04]} 9. Rd1 {[%emt 0:01:44]} b6 {[%emt 0:03:53]} 10. Bf4 {[%emt 0:01:25]} Ba6 {[%emt 0:01:16]} 11. Ne5 {[%emt 0:01:55]} Rc8 {[%emt 0:22:08]} 12. cxd5 {[%emt 0:02:31]} cxd5 {[%emt 0:00:05]} 13. Nc6 {[%emt 0:00:24]} Qe8 {[%emt 0:00:52]} 14. Nxe7+ {[%emt 0:02:04]} Qxe7 {[%emt 0:00:05]} 15. Nc3 {[%emt 0:00:07]} Bb7 {[%emt 0:01:50]} 16. Rac1 {[%emt 0:01:50]} a6 {[%emt 0:02:00]} 17. Qd3 {[%emt 0:02:04]} Rc6 {[%emt 0:01:37]} 18. Nb1 {[%emt 0:04:59]} Rfc8 {[%emt 0:00:17]} 19. Rxc6 {[%emt 0:00:12]} Rxc6 {[%emt 0:00:03]} 20. Qa3 {[%emt 0:09:03]} Qxa3 {[%emt 0:04:40]} 21. Nxa3 {[%emt 0:00:09]} a5 {[%emt 0:00:02]} 22. Rc1 {[%emt 0:01:17]} Rxc1+ {[%emt 0:00:41]} 23. Bxc1 {[%emt 0:00:07]} Ba6 {[%emt 0:00:02]} 24. Bf1 {[%emt 0:00:44]} Ne4 {[%emt 0:01:34]} 25. f3 {[%emt 0:03:03]} Nd6 {[%emt 0:00:03]} 26. Bf4 {[%emt 0:00:24]} Ne8 {[%emt 0:01:37]} 27. Bd2 {[%emt 0:01:13]} Nb8 {[%emt 0:00:38]} 28. e3 {[%emt 0:00:25]} Bxf1 {[%emt 0:00:31]} 29. Kxf1 {[%emt 0:00:06]} Nd6 {[%emt 0:00:02]} 30. Ke2 {[%emt 0:01:23]} Nc6 {[%emt 0:00:05]} 31. Nc2 {[%emt 0:00:24]} 1/2-1/2

[Event "Summer Chess Classic-B 2019"]
[Site "Saint Louis"]
[Date "2019.06.24"]
[Round "6.2"]
[White "Gabuzyan, Hovhannes"]
[Black "Oparin, Grigoriy"]
[Result "1/2-1/2"]
[ECO "C45"]
[WhiteElo "2619"]
[BlackElo "2644"]
[Annotator "RC"]
[PlyCount "93"]
[EventDate "2019.06.18"]
[EventType "tourn"]
[EventCountry "USA"]
[SourceTitle "playchess.com"]
[Source "ChessBase"]
[SourceQuality "1"]
[TimeControl "40/5400+30:1800+30"]

1. e4 {[%emt 0:00:00]} e5 {[%emt 0:00:00]} 2. Nf3 {[%emt 0:00:00]} Nc6 {[%emt 0:00:00]} 3. d4 {[%emt 0:00:38]} exd4 {[%emt 0:00:00]} 4. Nxd4 {[%emt 0:00:05]} Bc5 {[%emt 0:00:00]} 5. Nb3 {[%emt 0:00:35]} Bb6 {[%emt 0:00:00]} 6. Nc3 {[%emt 0:00:27]} Nf6 {[%emt 0:00:05]} 7. Qe2 {[%emt 0:02:25]} O-O {[%emt 0:00:24]} 8. Bg5 {[%emt 0:00:42]} h6 {[%emt 0:00:05]} 9. Bh4 {[%emt 0:00:25]} a5 {[%emt 0:00:14]} 10. a4 {[%emt 0:04:48]} Nd4 {[%emt 0:00:35]} 11. Qd3 {[%emt 0:03:19]} Nxb3 {[%emt 0:00:05]} 12. cxb3 {[%emt 0:00:05]} c6 {[%emt 0:00:08]} 13. O-O-O {[%emt 0:00:53]} d5 {[%emt 0:00:09]} 14. exd5 {[%emt 0:00:39]} cxd5 {[%emt 0:00:05]} 15. Qc2 {[%emt 0:00:09]} Be6 {[%emt 0:00:17]} 16. Nxd5 {[%emt 0:00:06]} Bxd5 {[%emt 0:00:09]} 17. Bxf6 {[%emt 0:00:05]} Qxf6 {[%emt 0:00:05]} 18. Rxd5 {[%emt 0:00:03]} Qxf2 {[%emt 0:00:09]} 19. Bc4 {[%emt 0:00:05]} Be3+ {[%emt 0:03:28]} 20. Kb1 {[%emt 0:00:17]} Qxc2+ {[%emt 0:00:06]} 21. Kxc2 {[%emt 0:00:04]} b6 {[%emt 0:00:04]} 22. b4 {[%emt 0:00:02]} axb4 {[%emt 0:01:53]} 23. Kb3 {[%emt 0:00:07]} Rfd8 {[%emt 0:05:52]} 24. Rhd1 {[%emt 0:02:30]} Rxd5 {[%emt 0:00:18]} 25. Rxd5 {[%emt 0:00:03]} Ra7 {[%emt 0:00:07]} 26. Kxb4 {[%emt 0:03:13]} g6 {[%emt 0:01:59]} 27. g4 {[%emt 0:03:33]} Kg7 {[%emt 0:02:52]} 28. b3 {[%emt 0:02:59]} Bf2 {[%emt 0:09:42]} 29. h3 {[%emt 0:01:13]} Kf6 {[%emt 0:02:38]} 30. Rd3 {[%emt 0:06:19]} Ke5 {[%emt 0:13:25]} 31. Kb5 {[%emt 0:02:40]} Ra5+ {[%emt 0:12:12]} 32. Kc6 {[%emt 0:00:22]} f5 {[%emt 0:00:05]} 33. Bb5 {[%emt 0:04:39]} fxg4 {[%emt 0:10:01]} 34. hxg4 {[%emt 0:00:08]} Ra8 {[%emt 0:00:10]} 35. Rd5+ {[%emt 0:10:32]} Kf4 {[%emt 0:00:35]} 36. Rd6 {[%emt 0:02:39]} Kg5 {[%emt 0:11:53]} 37. Be2 {[%emt 0:07:26]} Rf8 {[%emt 0:03:30]} 38. Rd5+ {[%emt 0:00:22]} Kf4 {[%emt 0:00:15]} 39. b4 {[%emt 0:01:10]} Re8 {[%emt 0:01:23]} 40. Bd1 {[%emt 0:00:00]} Re4 {[%emt 0:00:00]} 41. Rd2 {[%emt 0:12:08]} Be3 {[%emt 0:02:03]} 42. Rb2 {[%emt 0:01:21]} Re6+ {[%emt 0:02:48]} 43. Kb7 {[%emt 0:00:40]} Re5 {[%emt 0:02:35]} 44. b5 {[%emt 0:08:16]} h5 {[%emt 0:00:42]} 45. gxh5 {[%emt 0:00:05]} gxh5 {[%emt 0:00:04]} 46. Rh2 {[%emt 0:00:07]} Kg3 {[%emt 0:00:05]} 47. Rxh5 {[%emt 0:00:04]} 1/2-1/2

[Event "Summer Chess Classic-B 2019"]
[Site "Saint Louis"]
[Date "2019.06.26"]
[Round "8.3"]
[White "Gabuzyan, Hovhannes"]
[Black "Kovalenko, Igor"]
[Result "0-1"]
[ECO "A20"]
[WhiteElo "2619"]
[BlackElo "2651"]
[Annotator "RC"]
[PlyCount "158"]
[EventDate "2019.06.18"]
[EventType "tourn"]
[EventCountry "USA"]
[SourceTitle "playchess.com"]
[Source "ChessBase"]
[SourceQuality "1"]
[TimeControl "40/5400+30:1800+30"]

1. c4 {[%emt 0:00:00]} e5 {[%emt 0:00:22]} 2. a3 {[%emt 0:00:56]} c6 {[%emt 0:06:17]} 3. Nf3 {[%emt 0:00:14]} e4 {[%emt 0:01:29]} 4. Nd4 {[%emt 0:00:04]} Bc5 {[%emt 0:00:47]} 5. Nb3 {[%emt 0:00:04]} Bb6 {[%emt 0:00:02]} 6. c5 {[%emt 0:00:06]} Bc7 {[%emt 0:00:02]} 7. Nc3 {[%emt 0:00:04]} Nf6 {[%emt 0:00:02]} 8. Qc2 {[%emt 0:00:05]} Qe7 {[%emt 0:01:53]} 9. g4 {[%emt 0:00:04]} h6 {[%emt 0:04:17]} 10. Bg2 {[%emt 0:01:51]} O-O {[%emt 0:00:26]} 11. h4 {[%emt 0:05:15]} Nxg4 {[%emt 0:02:18]} 12. Qxe4 {[%emt 0:01:47]} Qxe4 {[%emt 0:30:27]} 13. Nxe4 {[%emt 0:00:28]} b6 {[%emt 0:00:03]} 14. d4 {[%emt 0:02:19]} bxc5 {[%emt 0:00:57]} 15. Nbxc5 {[%emt 0:03:26]} d5 {[%emt 0:02:06]} 16. Nc3 {[%emt 0:02:38]} Nd7 {[%emt 0:00:22]} 17. Nxd7 {[%emt 0:00:59]} Bxd7 {[%emt 0:00:03]} 18. Na4 {[%emt 0:01:10]} Nf6 {[%emt 0:00:44]} 19. Bd2 {[%emt 0:07:16]} Rfe8 {[%emt 0:01:50]} 20. Rc1 Bb6 21. Nxb6 {[%emt 0:03:44]} axb6 {[%emt 0:11:15]} 22. f3 {[%emt 0:00:18]} Ra4 {[%emt 0:00:15]} 23. Bb4 {[%emt 0:00:46]} Nh5 {[%emt 0:02:02]} 24. Kf2 {[%emt 0:00:05]} f5 {[%emt 0:00:58]} 25. e3 {[%emt 0:03:39]} Re6 {[%emt 0:06:33]} 26. Bh3 {[%emt 0:06:47]} g6 {[%emt 0:00:09]} 27. Rc3 {[%emt 0:00:31]} Kf7 {[%emt 0:00:09]} 28. Rb3 {[%emt 0:00:12]} Ra6 {[%emt 0:06:23]} 29. Ra1 {[%emt 0:03:57]} Ra4 {[%emt 0:01:04]} 30. Bc3 {[%emt 0:03:08]} b5 {[%emt 0:01:48]} 31. Bb4 {[%emt 0:00:05]} Nf6 {[%emt 0:01:08]} 32. Rc3 {[%emt 0:00:34]} Ra8 {[%emt 0:01:33]} 33. Bc5 {[%emt 0:02:53]} Ree8 {[%emt 0:06:08]} 34. b3 {[%emt 0:12:09]} g5 {[%emt 0:00:04]} 35. a4 {[%emt 0:00:43]} g4 {[%emt 0:00:11]} 36. Bg2 {[%emt 0:00:10]} Kg6 {[%emt 0:10:12]} 37. a5 {[%emt 0:03:14]} Re6 {[%emt 0:00:49]} 38. Bb6 {[%emt 0:02:09]} Kh5 {[%emt 0:00:39]} 39. Bc7 {[%emt 0:01:22]} b4 {[%emt 0:03:00]} 40. Rcc1 {[%emt 0:00:00]} gxf3 {[%emt 0:00:00]} 41. Bxf3+ {[%emt 0:03:05]} Ng4+ {[%emt 0:00:08]} 42. Bxg4+ {[%emt 0:00:10]} fxg4 {[%emt 0:00:06]} 43. a6 {[%emt 0:00:24]} Rf6+ {[%emt 0:02:15]} 44. Ke2 {[%emt 0:11:06]} Rg6 {[%emt 0:05:41]} 45. Bg3 {[%emt 0:07:32]} Ra7 {[%emt 0:02:38]} 46. Bb8 {[%emt 0:02:45]} Ra8 {[%emt 0:00:03]} 47. a7 {[%emt 0:05:34]} g3 {[%emt 0:00:47]} 48. e4 {[%emt 0:02:34]} Kxh4 {[%emt 0:05:42]} 49. exd5 {[%emt 0:06:00]} cxd5 {[%emt 0:00:11]} 50. Rc5 {[%emt 0:01:35]} Bg4+ {[%emt 0:01:17]} 51. Ke3 {[%emt 0:00:23]} g2 {[%emt 0:05:42]} 52. Rg1 {[%emt 0:04:19]} Kh3 {[%emt 0:01:38]} 53. Rxd5 {[%emt 0:03:59]} Rf6 {[%emt 0:00:37]} 54. Rc5 {[%emt 0:02:06]} Rf3+ {[%emt 0:00:38]} 55. Kd2 {[%emt 0:03:00]} Rf8 {[%emt 0:00:26]} 56. Rcc1 {[%emt 0:04:47]} Rfxb8 {[%emt 0:00:11]} 57. axb8=Q {[%emt 0:00:07]} Rxb8 {[%emt 0:00:02]} 58. Rh1+ {[%emt 0:00:05]} gxh1=Q {[%emt 0:01:28]} 59. Rxh1+ {[%emt 0:00:04]} Kg3 {[%emt 0:00:06]} 60. Rxh6 {[%emt 0:00:01]} Bf5 {[%emt 0:00:50]} 61. Rh5 {[%emt 0:02:59]} Kf4 {[%emt 0:01:03]} 62. Rh4+ {[%emt 0:00:02]} Kg5 {[%emt 0:00:20]} 63. Rh1 {[%emt 0:00:24]} Rc8 {[%emt 0:01:15]} 64. Rg1+ {[%emt 0:01:10]} Kf4 {[%emt 0:00:16]} 65. Rf1+ {[%emt 0:00:03]} Ke4 {[%emt 0:00:10]} 66. d5 {[%emt 0:00:02]} Rd8 {[%emt 0:00:13]} 67. Kc2 {[%emt 0:00:07]} Rxd5 {[%emt 0:00:10]} 68. Re1+ {[%emt 0:00:10]} Kd4+ {[%emt 0:00:48]} 69. Kb2 {[%emt 0:00:06]} Re5 {[%emt 0:00:08]} 70. Rf1 {[%emt 0:02:39]} Re2+ {[%emt 0:00:05]} 71. Ka1 {[%emt 0:00:04]} Bc2 {[%emt 0:00:31]} 72. Rf3 {[%emt 0:00:05]} Re3 {[%emt 0:00:31]} 73. Rf8 {[%emt 0:02:25]} Bxb3 {[%emt 0:00:07]} 74. Kb2 {[%emt 0:00:14]} Bd5 {[%emt 0:00:21]} 75. Rf4+ {[%emt 0:00:05]} Re4 {[%emt 0:00:03]} 76. Rf2 {[%emt 0:00:05]} Bc4 {[%emt 0:00:02]} 77. Rd2+ {[%emt 0:00:04]} Kc5 {[%emt 0:00:02]} 78. Rd8 {[%emt 0:00:05]} Re2+ {[%emt 0:00:03]} 79. Ka1 {[%emt 0:00:06]} b3 {[%emt 0:00:09]} 0-1